bitfinex/quotes_BTCUSD_20241110
["timestamp","ask_amount","ask_price","bid_price","bid_amount"]
[1731214686947,0.09353993,78944.0,78943.0,0.03696361]
[1731214687156,0.88,78945.0,78944.0,0.10001948]
[1731214687364,0.88,78945.0,78944.0,0.27275816]
[1731214687568,4.81318711,78953.0,78952.0,0.07553337]
[1731214687715,4.37618711,78953.0,78952.0,1.42911298]
[1731214687920,1.41618711,78953.0,78952.0,1.48990892]
[1731214688122,0.60618711,78953.0,78952.0,1.49490892]
[1731214688328,4.33290509,78962.0,78961.0,0.0731854]
[1731214688658,4.33290509,78962.0,78961.0,3.289]
[1731214689067,4.33290509,78962.0,78961.0,0.01166361]
[1731214689264,2.91844379,78962.0,78961.0,0.01166361]
[1731214689443,2.91844379,78962.0,78961.0,0.39159361]
[1731214690012,2.91844379,78962.0,78961.0,0.49159361]
[1731214691040,2.91844379,78962.0,78961.0,0.52822934]
[1731214691273,2.91844379,78962.0,78961.0,0.52989295]
[1731214691849,2.91149675,78962.0,78961.0,0.52989295]
[1731214692136,2.91149675,78962.0,78961.0,0.42922934]
[1731214692578,2.91149675,78962.0,78961.0,3.11293]
[1731214693190,2.91149675,78962.0,78961.0,0.38993]
[1731214693430,2.91149675,78962.0,78961.0,0.51290441]
[1731214693628,2.64149675,78962.0,78961.0,0.45138262]
[1731214693872,0.9649703,78962.0,78961.0,0.55138262]
[1731214694079,0.96043039,78962.0,78961.0,0.55138262]
[1731214694282,0.96043039,78962.0,78961.0,0.44971901]
[1731214694489,0.91523976,78962.0,78961.0,0.51290441]
[1731214694712,0.85218138,78962.0,78961.0,0.38393]
[1731214694929,0.85218138,78962.0,78961.0,1.17193]
[1731214694930,0.85180209,78962.0,78961.0,1.17193]
[1731214695355,0.85180209,78962.0,78961.0,1.217445]
[1731214695570,0.85180209,78962.0,78961.0,0.95907]
[1731214696203,0.85180209,78962.0,78961.0,0.24091901]
[1731214696424,0.85180209,78962.0,78961.0,0.2392554]
[1731214696635,0.8499931,78962.0,78961.0,0.24091901]
[1731214696844,0.84497454,78962.0,78961.0,0.24091901]
[1731214697065,0.84497454,78962.0,78961.0,0.34091901]
[1731214697283,0.72497454,78962.0,78961.0,0.3392554]
[1731214697490,0.36910454,78962.0,78961.0,0.3139654]
[1731214697718,0.36910454,78962.0,78961.0,0.34092901]
[1731214697928,0.34381454,78962.0,78961.0,0.34092901]
[1731214698150,0.29323454,78962.0,78961.0,0.2633954]
[1731214698370,0.2894785,78962.0,78961.0,0.26505901]
[1731214698598,0.2388985,78962.0,78961.0,0.22716901]
[1731214698834,0.01,78970.0,78961.0,0.22716901]
[1731214698835,4.11611159,78970.0,78969.0,0.20026547]
[1731214699093,3.0168679,78970.0,78969.0,1.3518966]
[1731214699303,2.99663846,78970.0,78969.0,2.20570077]
[1731214699586,0.000717,79041.0,78978.0,0.10012487]
[1731214699587,3.92855487,78979.0,78978.0,0.10012487]
[1731214699806,4.50352701,78988.0,78987.0,0.10059764]
[1731214700009,0.000717,79041.0,78989.0,0.09865292]
[1731214700010,24.48019284,78990.0,78989.0,0.09865292]
[1731214700220,19.43019284,78990.0,78989.0,0.53922038]
[1731214700419,19.43019284,78990.0,78989.0,0.57735574]
[1731214700535,14.38019284,78990.0,78989.0,0.57735574]
[1731214700738,9.17246963,78990.0,78989.0,0.67735574]
[1731214700936,9.10165924,78990.0,78989.0,0.67735574]
[1731214701150,3.99923528,78990.0,78989.0,0.67735574]
[1731214701369,0.000717,79041.0,78989.0,0.67735574]
[1731214701370,4.60107475,78997.0,78996.0,0.09882025]
[1731214701639,1.63182391,78999.0,78998.0,0.19516864]
[1731214701834,1.61202355,78999.0,78998.0,0.67549732]
[1731214702042,0.000717,79041.0,78998.0,0.67549732]
[1731214702043,0.7588999,79000.0,78998.0,0.67716093]
[1731214702242,0.000717,79041.0,79005.0,0.09895405]
[1731214702243,5.73426868,79006.0,79005.0,0.09895405]
[1731214702524,4.79134264,79006.0,79005.0,2.95324858]
[1731214702709,5.23098902,79014.0,79013.0,0.09920886]
[1731214702914,5.22168657,79014.0,79013.0,0.94710962]
[1731214703061,3.60465324,79014.0,79013.0,0.95210962]
[1731214703271,0.1035479,79014.0,79013.0,1.06845362]
[1731214703578,0.000717,79041.0,79013.0,1.06845362]
[1731214703579,1.93534447,79023.0,79022.0,0.19886213]
[1731214703785,1.1347075,79023.0,79022.0,2.50082389]
[1731214703991,5.48425706,79032.0,79031.0,0.09854601]
[1731214704193,5.36882788,79032.0,79031.0,1.30475624]
[1731214704397,0.16838444,79032.0,79031.0,1.34052922]
[1731214704570,5.83173611,79041.0,79040.0,0.09591026]
[1731214704775,0.7685702,79041.0,79040.0,2.39944096]
[1731214705140,0.54086382,79041.0,79040.0,2.40110457]
[1731214705287,0.54086382,79041.0,79040.0,2.36296921]
[1731214705490,0.54086382,79041.0,79040.0,2.36463282]
[1731214705695,0.54086382,79041.0,79040.0,7.25063282]
[1731214705891,0.54086382,79041.0,79040.0,7.22033282]
[1731214706075,0.54086382,79041.0,79040.0,7.24838867]
[1731214706274,0.29086382,79041.0,79040.0,7.25505228]
[1731214706755,0.29086382,79041.0,79040.0,2.12456721]
[1731214706980,0.29086382,79041.0,79040.0,2.02623082]
[1731214707177,0.29086382,79041.0,79040.0,1.82924645]
[1731214707391,0.29086382,79041.0,79040.0,3.63224645]
[1731214707805,0.29086382,79041.0,79040.0,3.6961931]
[1731214708039,5.94021982,79050.0,79049.0,0.0753526]
[1731214708229,5.92708491,79050.0,79049.0,5.98672033]
[1731214708453,5.63708491,79050.0,79049.0,2.06288853]
[1731214708689,1.04708491,79050.0,79049.0,2.06288853]
[1731214708885,1.04510591,79050.0,79049.0,2.09843338]
[1731214709135,0.79993484,79050.0,79049.0,2.06122492]
[1731214709515,0.73418357,79050.0,79049.0,2.06288853]
[1731214709725,0.73418357,79050.0,79049.0,2.06122492]
[1731214709925,0.01418357,79050.0,79049.0,2.06122492]
[1731214710074,0.01418357,79050.0,79049.0,6.39888853]
[1731214710285,0.01418357,79050.0,79049.0,6.37358853]
[1731214710686,0.01418357,79050.0,79049.0,2.48158853]
[1731214711477,0.00101683,79050.0,79049.0,2.48158853]
[1731214711929,7.459e-05,79097.0,79049.0,2.48158853]
[1731214711930,6.11529028,79058.0,79057.0,0.09502914]
[1731214712134,6.11457893,79058.0,79057.0,1.63661765]
[1731214712325,6.0948436,79058.0,79057.0,1.63661765]
[1731214712540,4.8889736,79058.0,79057.0,1.18321434]
[1731214712746,4.2169736,79058.0,79057.0,1.18321434]
[1731214712964,2.7743936,79058.0,79057.0,1.63611765]
[1731214713170,2.74581743,79058.0,79057.0,2.77811765]
[1731214713391,2.68490754,79058.0,79057.0,1.63611765]
[1731214713609,1.49432754,79058.0,79057.0,1.63611765]
[1731214713829,1.46903754,79058.0,79057.0,1.63611765]
[1731214714062,1.42794185,79058.0,79057.0,1.63611765]
[1731214714436,1.4147786,79058.0,79057.0,1.63611765]
[1731214714645,1.4147786,79058.0,79057.0,1.63445404]
[1731214714867,1.40126248,79058.0,79057.0,1.63445404]
[1731214715097,1.40126248,79058.0,79057.0,1.63611765]
[1731214715498,1.40126248,79058.0,79057.0,1.73611765]
[1731214715706,1.3351659,79058.0,79057.0,1.73611765]
[1731214715906,1.32791955,79058.0,79057.0,1.73611765]
[1731214716111,1.32791955,79058.0,79057.0,1.77177356]
[1731214716249,1.26480094,79058.0,79057.0,1.76677356]
[1731214716458,1.18902648,79058.0,79057.0,1.77177356]
[1731214716714,1.18902648,79058.0,79057.0,1.73611765]
[1731214716981,1.18902648,79058.0,79057.0,1.77187201]
[1731214717103,1.18902648,79058.0,79057.0,1.77195485]
[1731214717495,1.1758641,79058.0,79057.0,1.77195485]
[1731214717831,1.12787521,79058.0,79057.0,1.79817597]
[1731214718045,1.08844731,79058.0,79057.0,1.76695485]
[1731214718215,1.08844731,79058.0,79057.0,1.77195485]
[1731214718216,0.93872395,79058.0,79057.0,1.77195485]
[1731214718419,0.51044533,79058.0,79057.0,1.77195485]
[1731214718713,0.35788048,79058.0,79057.0,1.76695485]
[1731214718860,0.35788048,79058.0,79057.0,1.67195485]
[1731214719070,0.33259048,79058.0,79057.0,1.58179124]
[1731214719255,6.26032019,79067.0,79066.0,0.07535436]
[1731214719457,6.00420311,79067.0,79066.0,2.03749723]
[1731214719660,5.97891311,79067.0,79066.0,2.51570054]
[1731214719865,5.97391311,79067.0,79066.0,2.51403693]
[1731214720116,5.97391311,79067.0,79066.0,2.22340127]
[1731214720321,5.97391311,79067.0,79066.0,1.86550807]
[1731214720474,5.97391311,79067.0,79066.0,1.86090417]
[1731214720681,5.90941346,79067.0,79066.0,1.25539496]
[1731214720878,5.90941346,79067.0,79066.0,1.26039496]
[1731214721230,5.90941346,79067.0,79066.0,1.25705857]
[1731214721447,5.89724166,79067.0,79066.0,1.20350348]
[1731214721830,5.89724166,79067.0,79066.0,1.16561348]
[1731214722003,5.89724166,79067.0,79066.0,1.22916857]
[1731214722205,5.89657098,79067.0,79066.0,1.22416857]
[1731214722418,5.87128098,79067.0,79066.0,1.13023318]
[1731214722660,5.86702951,79067.0,79066.0,1.15429496]
[1731214723005,5.86702951,79067.0,79066.0,1.09073987]
[1731214723250,5.86702951,79067.0,79066.0,1.09240348]
[1731214723609,5.63681126,79067.0,79066.0,1.10240348]
[1731214723811,5.62988285,79067.0,79066.0,1.16595857]
[1731214724018,5.62988285,79067.0,79066.0,0.91834159]
[1731214724240,5.49428839,79067.0,79066.0,1.54313159]
[1731214724471,5.45689879,79067.0,79066.0,1.58059462]
[1731214724654,5.45689879,79067.0,79066.0,1.48242331]
[1731214725007,5.45773679,79067.0,79066.0,1.5459784]
[1731214725222,5.45856183,79067.0,79066.0,1.05472331]
[1731214725415,5.45856183,79067.0,79066.0,1.1182784]
[1731214725617,5.45856183,79067.0,79066.0,1.0082584]
[1731214725864,5.41726183,79067.0,79066.0,0.52950331]
[1731214726068,5.41726183,79067.0,79066.0,0.40573]
[1731214726408,5.41726183,79067.0,79066.0,0.40473]
[1731214726620,5.41226183,79067.0,79066.0,0.40639361]
[1731214726824,5.41226183,79067.0,79066.0,0.40473]
[1731214727039,5.41726183,79067.0,79066.0,0.40473]
[1731214727240,5.41726183,79067.0,79066.0,0.36682]
[1731214727356,5.42226183,79067.0,79066.0,0.34152]
[1731214727557,5.42726183,79067.0,79066.0,0.34152]
[1731214727789,5.41726183,79067.0,79066.0,0.34152]
[1731214729055,5.41226183,79067.0,79066.0,0.34152]
[1731214729202,5.41726183,79067.0,79066.0,0.34252]
[1731214729405,5.41726183,79067.0,79066.0,0.34152]
[1731214729406,5.41226183,79067.0,79066.0,0.34152]
[1731214729624,5.41226183,79067.0,79066.0,0.34318361]
[1731214729824,5.41226183,79067.0,79066.0,0.34252]
[1731214730253,5.35389378,79067.0,79066.0,0.4067387]
[1731214730480,5.34889378,79067.0,79066.0,0.34318361]
[1731214730867,5.34889378,79067.0,79066.0,0.4067387]
[1731214731069,5.34889378,79067.0,79066.0,0.34318361]
[1731214731380,5.34889378,79067.0,79022.0,0.0253]
[1731214731381,5.34494878,79067.0,79022.0,0.0253]
[1731214731713,5.34494878,79067.0,79035.0,0.00066361]
[1731214731714,0.005,79048.0,79035.0,0.00066361]
[1731214731983,0.005,79036.0,79035.0,0.06384499]
[1731214732190,0.005,79059.0,79035.0,0.37458]
[1731214732396,0.005,79059.0,79036.0,0.0025299]
[1731214732608,0.005,79048.0,79036.0,0.0025299]
[1731214732829,0.005,79043.0,79037.0,0.38457]
[1731214733052,0.01,79038.0,79037.0,0.38457]
[1731214733499,0.75885489,79047.0,79036.0,0.3]
[1731214733500,0.01,79037.0,79036.0,0.3]
[1731214734467,0.1,79044.0,79036.0,0.33471507]
[1731214735226,0.85885489,79037.0,79036.0,0.3]
[1731214735427,0.1,79037.0,79036.0,0.3]
[1731214736276,0.75885489,79046.0,79036.0,0.3]
[1731214736277,0.1,79045.0,79036.0,0.3]
[1731214736690,0.00133639,79040.0,79036.0,0.3]
[1731214736908,0.1,79044.0,79036.0,0.3]
[1731214737143,0.18977613,79064.0,79036.0,0.3]
[1731214737144,0.00133639,79078.0,79037.0,0.18977613]
[1731214737337,0.00133639,79078.0,79036.0,0.3]
[1731214737338,0.18977613,79050.0,79036.0,0.3]
[1731214737580,0.18977613,79049.0,79037.0,0.0253]
[1731214737785,0.18977613,79058.0,79037.0,0.0253]
[1731214737992,0.18977613,79057.0,79036.0,0.27471]
[1731214738221,0.18977613,79057.0,79037.0,0.001672]
[1731214738222,0.18977613,79049.0,79037.0,0.001672]
[1731214738436,0.18977613,79057.0,79037.0,0.001672]
[1731214738644,0.18977613,79057.0,79037.0,0.026972]
[1731214738860,0.18977613,79049.0,79037.0,0.026972]
[1731214739105,0.18977613,79041.0,79037.0,0.026972]
[1731214739315,0.18977613,79049.0,79037.0,0.026972]
[1731214739573,0.18977613,79049.0,79039.0,0.0253]
[1731214739773,0.1,79048.0,79039.0,0.0253]
[1731214740090,0.10133639,79040.0,79039.0,0.0253]
[1731214740403,0.00133639,79040.0,79039.0,0.01267]
[1731214741111,0.09995846,79048.0,79038.0,0.27471]
[1731214741313,0.09995846,79048.0,79038.0,0.22417]
[1731214741511,0.18977613,79057.0,79038.0,0.22417]
[1731214741721,0.0968,79080.0,79041.0,0.18977613]
[1731214741900,0.18977613,79058.0,79035.0,1.404042]
[1731214742103,0.18977613,79049.0,79035.0,1.404042]
[1731214743024,0.18977613,79049.0,79032.0,1.8339]
[1731214743183,0.18977613,79041.0,79031.0,1.1245]
[1731214743432,0.18977613,79049.0,79031.0,1.1245]
[1731214743433,0.18977613,79049.0,79031.0,1.4786]
[1731214743633,0.1,79031.0,79027.0,1.7892]
[1731214743982,0.1,79031.0,79028.0,0.18977613]
[1731214744188,0.1,79031.0,79026.0,2.0357]
[1731214744405,0.18977613,79030.0,79026.0,2.0357]
[1731214744621,0.1,79031.0,79026.0,2.0357]
[1731214744843,0.1,79029.0,79026.0,2.0357]
[1731214745556,0.007,79066.0,79028.0,0.18977613]
[1731214745760,0.18977613,79039.0,79026.0,2.0357]
[1731214746124,0.18977613,79049.0,79026.0,2.0357]
[1731214746279,0.18977613,79049.0,79027.0,0.0253]
[1731214746280,0.18977613,79041.0,79027.0,0.0253]
[1731214746496,0.18977613,79049.0,79027.0,0.0253]
[1731214746723,0.18977613,79049.0,79029.0,0.0253]
[1731214747080,0.18977613,79056.0,79049.0,0.0253]
[1731214747513,0.19677613,79066.0,79049.0,0.0253]
[1731214747953,0.19677613,79066.0,79026.0,2.0357]
[1731214747954,0.007,79066.0,79059.0,0.0253]
[1731214748170,0.19677613,79066.0,79059.0,0.0253]
[1731214748349,0.007,79066.0,79061.0,0.0253]
[1731214748873,0.007,79066.0,79031.0,0.0220423]
[1731214748874,0.18927613,79065.0,79045.0,0.0253]
[1731214749080,0.18927613,79065.0,79031.0,0.0220423]
[1731214749081,0.19677613,79066.0,79049.0,0.0253]
[1731214749256,0.18977613,79058.0,79027.0,0.03526768]
[1731214749492,0.0928,79065.0,79043.0,0.18977613]
[1731214749624,0.0928,79065.0,79027.0,0.03526768]
[1731214749625,0.18977613,79057.0,79027.0,0.03526768]
[1731214749841,0.1,79064.0,79039.0,0.0253]
[1731214750050,0.1,79064.0,78970.0,0.06325163]
[1731214750051,0.1,79045.0,79026.0,0.59804168]
[1731214750231,0.18977613,79031.0,79024.0,1.4991]
[1731214750444,0.1,79030.0,79024.0,1.27726892]
[1731214750868,0.001,79025.0,79024.0,1.19072603]
[1731214751210,0.23324102,79025.0,79024.0,0.83042075]
[1731214751411,0.101,79025.0,79024.0,0.80586727]
[1731214751563,0.1,79025.0,79024.0,0.79318627]
[1731214751764,0.1,79025.0,79024.0,0.81848627]
[1731214752169,0.1,79037.0,79024.0,0.81848627]
[1731214752398,0.1,79035.0,79024.0,0.79318627]
[1731214753161,0.1,79026.0,79024.0,0.79318627]
[1731214753304,0.13224102,79025.0,79024.0,0.79318627]
[1731214753504,0.1,79026.0,79024.0,0.79318627]
[1731214753924,0.43201715,79025.0,79024.0,0.64022472]
[1731214754289,0.24224102,79025.0,79024.0,0.61271506]
[1731214754627,0.00862937,78958.0,78953.0,0.001432]
[1731214756321,0.00862937,78976.0,78953.0,0.001432]
[1731214756563,0.18977613,78977.0,78953.0,0.001432]
[1731214756795,0.18977613,78987.0,78956.0,0.0253]
[1731214756909,0.18977613,78987.0,78953.0,0.001432]
[1731214756910,0.18977613,78986.0,78958.0,0.04385729]
[1731214757115,0.18977613,78985.0,78960.0,0.0253]
[1731214757314,0.18977613,78977.0,78962.0,0.0253]
[1731214757954,0.18977613,78985.0,78962.0,0.0253]
[1731214758150,0.18977613,78974.0,78962.0,0.0253]
[1731214758353,0.18977613,78977.0,78962.0,0.06343189]
[1731214758621,0.18977613,78977.0,78964.0,0.0253]
[1731214758968,0.18977613,78976.0,78964.0,0.0253]
[1731214759181,0.18977613,78985.0,78964.0,0.0253]
[1731214759387,0.18977613,78977.0,78965.0,0.04212306]
[1731214759712,0.18977613,78977.0,78966.0,0.0253]
[1731214760056,0.18977613,78977.0,78968.0,0.0253]
[1731214760214,0.18977613,78969.0,78968.0,0.0253]
[1731214760419,0.18977613,78977.0,78968.0,0.0253]
[1731214760618,0.18977613,78977.0,78957.0,0.001432]
[1731214760619,0.18977613,78969.0,78957.0,0.001432]
[1731214760957,0.01897761,78968.0,78957.0,0.001432]
[1731214761169,0.18977613,78977.0,78957.0,0.001432]
[1731214761170,0.18977613,78967.0,78957.0,0.001432]
[1731214761337,0.18977613,78966.0,78957.0,0.001432]
[1731214761689,0.18977613,78962.0,78959.0,0.0253]
[1731214761926,0.18977613,78985.0,78959.0,0.0253]
[1731214762113,0.18977613,78976.0,78959.0,0.0253]
[1731214762501,0.18977613,78976.0,78960.0,0.0253]
[1731214762698,0.18977613,78986.0,78960.0,0.0253]
[1731214762924,0.19145013,78977.0,78960.0,0.0253]
[1731214763325,0.18645013,78977.0,78960.0,0.0253]
[1731214763525,0.18645013,78977.0,78957.0,0.001432]
[1731214763730,0.18977613,78969.0,78957.0,0.001432]
[1731214763942,0.18645013,78977.0,78960.0,0.0253]
[1731214764526,0.18977613,78961.0,78960.0,0.0253]
[1731214764692,0.18645013,78977.0,78957.0,0.001432]
[1731214764693,0.001674,78977.0,78957.0,0.001432]
[1731214764944,0.18977613,78968.0,78957.0,0.001432]
[1731214765123,0.18977613,78976.0,78957.0,0.001432]
[1731214765336,0.18977613,78968.0,78957.0,0.001432]
[1731214765462,0.18977613,78976.0,78957.0,0.001432]
[1731214765665,0.18977613,78976.0,78958.0,0.18977613]
[1731214765871,0.18977613,78975.0,78957.0,0.001432]
[1731214766101,0.18977613,78958.0,78957.0,0.001432]
[1731214766461,0.18977613,78974.0,78957.0,0.001432]
[1731214766737,0.18977613,78964.0,78957.0,0.001432]
[1731214766945,0.001674,78977.0,78958.0,0.18977613]
[1731214767115,0.18977613,78972.0,78957.0,0.001432]
[1731214767524,0.16448613,78972.0,78957.0,0.001432]
[1731214767686,0.001674,78977.0,78959.0,0.0253]
[1731214767897,0.001674,78977.0,78957.0,0.001432]
[1731214767898,0.18977613,78976.0,78965.0,0.0253]
[1731214768513,0.001674,78977.0,78967.0,0.0253]
[1731214768788,0.18977613,78976.0,78967.0,0.0253]
[1731214768937,0.001674,78977.0,78972.0,0.0253]
[1731214769359,0.18977613,79011.0,78972.0,0.0253]
[1731214769566,0.18977613,79011.0,78960.0,0.1]
[1731214769567,0.18977613,79011.0,78974.0,0.0253]
[1731214769688,0.18977613,78986.0,78976.0,0.0253]
[1731214769916,0.18977613,78994.0,78976.0,0.0253]
[1731214770136,0.18977613,78986.0,78976.0,0.0253]
[1731214770337,0.18977613,78994.0,78976.0,0.0253]
[1731214770755,0.18977613,79003.0,78980.0,0.0253]
[1731214770932,0.18977613,78994.0,78982.0,0.0253]
[1731214771343,0.18977613,79011.0,78984.0,0.0253]
[1731214771581,0.18977613,78994.0,78993.0,0.0253]
[1731214771781,0.00134696,79000.0,78993.0,0.0253]
[1731214771961,0.18977613,78999.0,78993.0,0.0253]
[1731214772167,0.18977613,78994.0,78993.0,0.0253]
[1731214772477,0.01911231,78998.0,78994.0,0.0253]
[1731214772679,0.00134696,79000.0,78994.0,0.0253]
[1731214773658,0.18977613,78998.0,78957.0,0.001432]
[1731214773808,0.18977613,78997.0,78982.0,0.0253]
[1731214774009,0.18977613,78989.0,78982.0,0.0253]
[1731214774230,0.9747,78972.0,78951.0,0.0253]
[1731214774427,0.9747,78972.0,78971.0,0.21507613]
[1731214774625,0.9747,78972.0,78971.0,0.0253]
[1731214775348,0.9747,78972.0,78949.0,0.0173]
[1731214775544,0.9747,78972.0,78962.0,0.1125]
[1731214776149,0.89566364,78972.0,78962.0,0.1125]
[1731214776589,0.89566364,78972.0,78954.0,0.1125]
[1731214776749,0.89566364,78972.0,78971.0,0.1125]
[1731214776961,0.72806533,78972.0,78971.0,0.12375]
[1731214777157,0.21400418,78972.0,78971.0,0.2033958]
[1731214777452,0.08590418,78972.0,78971.0,0.2510958]
[1731214777635,0.18977613,78986.0,78973.0,0.0125]
[1731214777835,0.18977613,78986.0,78975.0,0.0125]
[1731214778037,0.18977613,78985.0,78977.0,0.0125]
[1731214778269,0.18977613,78995.0,78977.0,0.0125]
[1731214778466,0.18977613,78995.0,78978.0,0.00824485]
[1731214778764,0.18977613,78995.0,78979.0,0.0125]
[1731214779382,0.18977613,78995.0,78962.0,0.0253]
[1731214779613,0.01919601,78994.0,78980.0,0.0253]
[1731214779967,0.0494,78993.0,78980.0,0.0253]
[1731214780136,0.15837114,78995.0,78971.0,0.18977613]
[1731214780330,0.01605551,78994.0,78980.0,0.0253]
[1731214780625,0.01605551,78994.0,78906.0,0.001]
[1731214780849,0.00218396,79000.0,78906.0,0.001]
[1731214780850,0.078,78993.0,78987.0,0.18977613]
[1731214781053,0.18977613,78985.0,78924.0,0.06313911]
[1731214781310,0.078,78993.0,78968.0,0.18977613]
[1731214781537,0.18977613,78986.0,78922.0,0.01060096]
[1731214781752,0.078,78993.0,78976.0,0.18977613]
[1731214781963,0.012377,78971.0,78959.0,0.18977613]
[1731214782170,0.012377,78971.0,78970.0,0.18977613]
[1731214782343,0.012377,78971.0,78922.0,0.02120192]
[1731214782610,0.012377,78971.0,78963.0,0.18977613]
[1731214782813,0.012377,78971.0,78922.0,0.02120192]
[1731214782939,0.012377,78971.0,78959.0,0.18977613]
[1731214783144,0.18977613,78970.0,78960.0,0.01897761]
[1731214783344,0.012377,78971.0,78915.0,0.06391977]
[1731214783550,0.012377,78971.0,78957.0,0.18977613]
[1731214783779,0.18977613,78970.0,78913.0,0.06363854]
[1731214783978,0.18977613,78970.0,78953.0,0.1]
[1731214784135,0.02021531,78969.0,78953.0,0.1]
[1731214784547,0.02021531,78969.0,78912.0,0.005056]
[1731214784875,0.02021531,78969.0,78949.0,0.1]
[1731214785815,0.012377,78971.0,78950.0,0.18977613]
[1731214786012,0.18977613,78970.0,78950.0,0.18977613]
[1731214786596,0.18977613,78970.0,78951.0,0.0253]
[1731214786797,0.18977613,78970.0,78963.0,0.000837]
[1731214787035,0.012377,78971.0,78963.0,0.000837]
[1731214787514,0.0494,78989.0,78966.0,0.0253]
[1731214787719,0.18977613,78983.0,78966.0,0.0253]
[1731214787939,0.03171761,78988.0,78966.0,0.0253]
[1731214788158,0.0494,78989.0,78974.0,0.0253]
[1731214788523,0.0494,78989.0,78975.0,0.18977613]
[1731214788866,0.0494,78989.0,78976.0,0.0253]
[1731214789838,0.0494,78989.0,78963.0,0.000837]
[1731214789839,0.0494,78989.0,78978.0,0.0253]
[1731214790042,0.01274,78988.0,78963.0,0.000837]
[1731214790250,0.01274,78988.0,78963.0,0.0253]
[1731214790884,0.01274,78988.0,78964.0,0.0253]
[1731214791128,0.18977613,78987.0,78964.0,0.0253]
[1731214791446,0.01274,78988.0,78944.0,0.03299626]
[1731214791447,0.0274,78986.0,78944.0,0.001432]
[1731214791975,0.18977613,78982.0,78944.0,0.001432]
[1731214792198,0.02171761,78981.0,78944.0,0.001432]
[1731214792438,0.18977613,79001.0,78944.0,0.001432]
[1731214792658,0.18977613,78993.0,78982.0,0.0253]
[1731214792873,0.18977613,78992.0,78982.0,0.0253]
[1731214793039,0.18977613,79001.0,78982.0,0.0253]
[1731214793462,0.18977613,79011.0,78982.0,0.0253]
[1731214793664,0.18977613,79011.0,78957.0,0.1]
[1731214793665,0.18977613,79011.0,78983.0,0.0253]
[1731214793884,0.18977613,78998.0,78983.0,0.0253]
[1731214794096,0.18977613,79008.0,78951.0,0.01732134]
[1731214794296,0.18977613,79008.0,78952.0,0.06337298]
[1731214794488,0.0475,79051.0,78968.0,0.00499999]
[1731214794683,0.0475,79051.0,78953.0,0.1282]
[1731214794684,0.18695206,78999.0,78982.0,0.00499999]
[1731214794883,0.18977613,78995.0,78987.0,0.0688355]
[1731214795040,0.18977613,79007.0,78988.0,0.01732134]
[1731214795265,0.18977613,78999.0,78990.0,0.06333545]
[1731214795458,0.18977613,79007.0,78995.0,0.002]
[1731214795688,0.18977613,78999.0,78996.0,0.01732134]
[1731214795919,0.18977613,79015.0,78996.0,0.01732134]
[1731214796485,0.18977613,78999.0,78996.0,0.01732134]
[1731214796681,0.18977613,79007.0,78995.0,0.002]
[1731214797183,0.18977613,79015.0,78995.0,0.002]
[1731214797384,0.18977613,79015.0,78996.0,0.02255112]
[1731214797628,0.18977613,78997.0,78996.0,0.02255112]
[1731214797799,0.18977613,79015.0,78995.0,0.002]
[1731214797980,0.18977613,79065.0,78995.0,0.002]
[1731214797981,0.18977613,79014.0,79006.0,0.06354189]
[1731214798185,0.18977613,79014.0,79007.0,0.02940531]
[1731214798390,0.18977613,79013.0,79007.0,0.02940531]
[1731214798991,0.18977613,79065.0,79008.0,0.0253]
[1731214799199,0.18977613,79022.0,79015.0,0.0253]
[1731214799404,0.18977613,79022.0,79010.0,0.1631103]
[1731214799405,0.18977613,79065.0,79030.0,0.00499999]
[1731214799650,0.18977613,79065.0,79036.0,0.0253]
[1731214800403,0.18977613,79045.0,79036.0,0.0253]
[1731214800611,0.18977613,79045.0,79007.0,0.00685419]
[1731214800612,0.18977613,79045.0,79029.0,0.0253]
[1731214800821,0.18977613,79065.0,79031.0,0.0253]
[1731214801034,0.18977613,79065.0,79018.0,0.01627556]
[1731214801035,0.18977613,79045.0,79038.0,0.0253]
[1731214801283,0.18977613,79053.0,79038.0,0.0253]
[1731214801431,0.18977613,79065.0,79040.0,0.0253]
[1731214801646,0.18977613,79045.0,79039.0,0.0253]
[1731214801894,0.18977613,79065.0,79037.0,0.00499999]
[1731214802157,0.19061313,79066.0,79052.0,0.00499999]
[1731214802358,0.19061313,79066.0,79054.0,0.00999999]
[1731214802589,0.000837,79066.0,79054.0,0.01499999]
[1731214803213,0.000837,79066.0,79054.0,0.01703501]
[1731214803971,0.19061313,79066.0,79055.0,0.01499999]
[1731214804178,4.013e-05,79096.0,79066.0,0.01499999]
[1731214804179,5.08851595,79067.0,79066.0,0.01499999]
[1731214804300,4.88231595,79067.0,79066.0,0.02499999]
[1731214804498,4.75421595,79067.0,79066.0,0.09588324]
[1731214804784,4.75421595,79067.0,79066.0,0.04488832]
[1731214804988,4.75421595,79067.0,79053.0,0.00790487]
[1731214805339,0.18977613,79066.0,79053.0,0.00790487]
[1731214807247,0.0466,79065.0,79053.0,0.00790487]
[1731214807442,0.0466,79065.0,79055.0,0.18977613]
[1731214807596,4.75421595,79067.0,79056.0,0.0197681]
[1731214807861,0.18977613,79066.0,79053.0,0.00790487]
[1731214809199,0.005,79020.0,79011.0,0.00499999]
[1731214809370,0.005,79020.0,78938.0,0.21126074]
[1731214809371,0.005,79046.0,79026.0,0.00499999]
[1731214809566,0.126,79056.0,79018.0,0.00499999]
[1731214809567,0.005,79035.0,79018.0,0.00499999]
[1731214809789,0.005,79035.0,79020.0,0.00499999]
[1731214809999,0.005,79025.0,79021.0,0.01947761]
[1731214810168,0.18977613,79045.0,78996.0,0.5095]
[1731214810169,0.005,79022.0,79009.0,0.00499999]
[1731214810372,0.005,79014.0,79013.0,0.18977613]
[1731214810689,0.005,79015.0,79013.0,0.01947761]
[1731214810916,0.001,79027.0,79009.0,0.00499999]
[1731214811097,0.005,79016.0,79009.0,0.00499999]
[1731214811531,0.005,79000.0,78996.0,0.5045]
[1731214811653,0.18977613,78997.0,78978.0,0.00477414]
[1731214811851,0.005,79003.0,78989.0,0.00451044]
[1731214812078,0.18977613,79001.0,78990.0,0.000839]
[1731214812282,0.01,78991.0,78990.0,0.000839]
[1731214812481,0.18977613,79001.0,78990.0,0.000839]
[1731214812694,0.18977613,79000.0,78990.0,0.000839]
[1731214813345,0.18977613,78991.0,78956.0,0.00499999]
[1731214813521,0.18977613,78991.0,78944.0,0.001432]
[1731214813522,0.005,78990.0,78975.0,0.18977613]
[1731214813703,0.18977613,78989.0,78953.0,0.00499999]
[1731214814059,0.0466,78990.0,78971.0,0.18977613]